bitfinex-derivatives/quotes_BNBF0:USTF0_20250510
["timestamp","ask_amount","ask_price","bid_price","bid_amount"]
[1746844369242,0.24411188,672.27,671.4,1.49471907]
[1746844369441,0.24411188,672.27,671.41,1.79260678]
[1746844369642,0.24411188,672.28,671.42,1.49471907]
[1746844369842,0.24411188,672.28,671.43,1.49468229]
[1746844370141,0.24411188,672.28,671.44,1.79257]
[1746844370341,0.24411188,672.28,671.45,1.49468229]
[1746844370541,0.24411188,672.28,671.46,1.49468229]
[1746844370737,0.24411188,672.28,671.47,1.79257]
[1746844370943,0.24411188,672.36,671.48,1.49468229]
[1746844371140,0.24411188,672.36,671.49,1.49468229]
[1746844371340,0.25895266,672.31,671.5,1.79257]
[1746844371539,0.25895266,672.31,671.51,0.56058162]
[1746844371843,0.24411188,672.3,671.52,0.56058162]
[1746844372143,0.24411188,672.3,671.53,0.56058162]
[1746844372339,0.24411188,672.3,671.54,0.85846933]
[1746844372538,0.24411188,672.3,671.55,0.56058162]
[1746844372738,0.24411188,672.3,671.56,0.56058162]
[1746844372939,0.24411188,672.3,671.57,0.56058162]
[1746844373142,0.24411188,672.3,671.58,0.56058162]
[1746844373438,0.24411188,672.36,671.59,0.56058162]
[1746844373644,0.24411188,672.36,671.6,0.56058162]
[1746844373843,0.24411188,672.36,671.61,0.56058162]
[1746844374143,0.24411188,672.36,671.62,0.56058162]
[1746844374338,0.25893917,672.35,671.33,0.25893917]
[1746844374536,0.25893917,672.35,671.34,1.49389252]
[1746844374741,0.24411188,672.34,671.35,1.49389252]
[1746844374939,0.24411188,672.34,671.36,1.49389252]
[1746844375142,0.24411188,672.34,671.37,1.79173346]
[1746844375343,0.24411188,672.34,671.38,1.49389252]
[1746844375543,0.24411188,672.34,671.39,1.49389252]
[1746844375742,0.24411188,672.34,671.4,1.79173346]
[1746844375942,0.24411188,672.34,671.41,1.49389252]
[1746844376143,0.24411188,672.34,671.42,1.49389252]
[1746844376339,0.24411188,672.36,671.43,1.49351011]
[1746844376643,0.24411188,672.36,671.44,1.49351011]
[1746844376843,0.24411188,672.36,671.45,1.49351011]
[1746844377043,0.24411188,672.36,671.46,1.49351011]
[1746844377244,0.24411188,672.4,671.47,1.49351011]
[1746844377544,0.2589382,672.37,671.48,1.79135105]
[1746844377745,0.2589382,672.37,671.49,1.49351011]
[1746844377938,0.24411188,672.36,671.5,1.79135105]
[1746844378243,0.24411188,672.36,671.51,1.49278497]
[1746844378441,0.24411188,672.36,671.52,1.79062591]
[1746844378645,0.24411188,672.36,671.53,1.49278497]
[1746844378844,0.24411188,672.36,671.54,1.49278497]
[1746844379046,0.24411188,672.36,671.55,1.79062591]
[1746844379245,0.24411188,672.4,671.56,1.49278497]
[1746844379446,0.506,672.35,671.57,1.79062591]
[1746844379647,0.506,672.35,671.58,0.55986285]
[1746844379843,0.506,672.35,671.59,0.85770379]
[1746844380041,0.24411188,672.34,671.59,0.29784094]
[1746844380443,0.24411188,672.34,671.26,0.29794714]
[1746844380648,0.24411188,672.34,671.6,0.452]
[1746844382450,0.506,672.35,671.6,0.452]
[1746844382744,0.24435162,672.34,671.6,0.452]
[1746844385653,0.24435162,672.34,671.61,0.56002281]
[1746844385951,0.24435162,672.34,671.62,0.56002281]
[1746844386153,0.24435162,672.34,671.63,0.56002281]
[1746844386352,0.24435162,672.34,671.64,0.55979602]
[1746844386654,0.24435162,672.34,671.65,0.55979602]
[1746844386853,0.24435162,672.34,671.66,0.55979602]
[1746844387147,0.24435162,672.34,671.67,0.55979602]
[1746844387348,0.24435162,672.34,671.6,0.452]
[1746844387552,0.24435162,672.34,671.61,0.55981553]
[1746844387749,0.24435162,672.34,671.62,0.55986331]
[1746844387954,0.24435162,672.34,671.6,0.452]
[1746844388151,0.24435162,672.34,671.61,0.55986414]
[1746844388355,0.24435162,672.34,671.62,0.55986414]
[1746844388654,0.24435162,672.34,671.6,0.452]
[1746844388846,0.506,672.35,671.6,0.452]
[1746844389253,0.24443514,672.34,671.6,0.452]
[1746844389454,0.50341285,672.34,671.6,0.452]
[1746844390154,0.24443514,672.33,671.6,0.452]
[1746844394657,0.70098638,672.32,671.6,0.452]
[1746844394956,0.24443514,672.31,671.6,0.452]
[1746844397360,0.24443514,672.31,671.61,0.56005828]
[1746844397660,0.442,672.32,671.6,0.452]
[1746844398159,0.24446307,672.31,671.6,0.452]
[1746844398861,0.442,672.32,671.6,0.452]
[1746844399363,0.24445756,672.31,671.6,0.452]
[1746844401061,0.24445756,672.31,671.61,0.5599926]
[1746844401261,0.24445756,672.31,671.62,1.79149207]
[1746844401457,0.24445756,672.31,671.63,1.49372256]
[1746844401661,0.24445756,672.31,671.64,1.79149207]
[1746844401861,0.24445756,672.31,671.65,0.5599926]
[1746844402061,0.442,672.32,671.66,1.49339841]
[1746844402262,0.442,672.32,671.67,1.49339841]
[1746844402461,0.442,672.32,671.68,0.5599926]
[1746844402662,0.442,672.32,671.69,0.5599926]
[1746844402956,0.442,672.32,671.7,0.5599926]
[1746844403157,0.442,672.32,671.71,0.5599926]
[1746844403455,0.442,672.32,671.72,0.5599926]
[1746844403656,0.442,672.32,671.73,0.5599926]
[1746844403857,0.442,672.32,671.74,0.5599926]
[1746844404061,0.442,672.32,671.72,0.481]
[1746844404261,0.442,672.32,671.73,0.55963105]
[1746844404461,0.442,672.32,671.72,0.481]
[1746844404663,0.442,672.32,671.73,0.55974524]
[1746844404859,0.442,672.32,671.74,0.55974524]
[1746844405063,0.442,672.32,671.72,0.481]
[1746844405263,0.442,672.32,671.73,0.559748]
[1746844405463,0.442,672.32,671.74,0.55968092]
[1746844405665,0.442,672.32,671.72,0.481]
[1746844406164,0.442,672.32,671.73,0.56001942]
[1746844406360,0.442,672.32,671.72,0.481]
[1746844406562,0.442,672.32,671.73,0.55996975]
[1746844406760,0.442,672.32,671.74,0.55997206]
[1746844406965,0.442,672.32,671.72,0.481]
[1746844411664,0.2589382,672.36,671.72,0.481]
[1746844412067,0.24434081,672.35,671.72,0.481]
[1746844412371,0.24434081,672.4,671.72,0.481]
[1746844413371,0.2589382,672.39,671.72,0.481]
[1746844413970,0.24434081,672.38,671.72,0.481]
[1746844414366,0.502,672.37,671.72,0.481]
[1746844414967,0.24434081,672.36,671.72,0.481]
[1746844415369,0.50328768,672.36,671.72,0.481]
[1746844415670,0.24434081,672.35,671.72,0.481]
[1746844415871,0.24434081,672.35,671.73,0.56095389]
[1746844416067,0.24434081,672.35,671.74,0.56095389]
[1746844416265,0.24434081,672.35,671.75,0.56095389]
[1746844416467,0.24434081,672.35,671.76,0.56095389]
[1746844416671,0.24434081,672.36,671.77,0.56095389]
[1746844416865,0.24434081,672.36,671.72,0.481]
[1746844416866,0.24434081,672.36,671.78,0.56095389]
[1746844417069,0.24434081,672.36,671.79,0.56095389]
[1746844417272,0.24434081,672.36,671.8,0.56095389]
[1746844417471,0.24434081,672.36,671.81,0.56095389]
[1746844417770,0.24434081,672.36,671.82,0.56095389]
[1746844417971,0.24434081,672.36,671.78,0.485]
[1746844418167,0.24434081,672.36,671.79,0.56087401]
[1746844418372,0.24434081,672.36,671.8,0.56087401]
[1746844418572,0.24434081,672.36,671.81,0.56087401]
[1746844418773,0.24434081,672.36,671.78,0.485]
[1746844418973,0.24434081,672.36,671.79,0.56082139]
[1746844419173,0.24434081,672.36,671.8,0.56082139]
[1746844419373,0.24434081,672.36,671.81,0.56082139]
[1746844419572,0.24434081,672.36,671.78,0.485]
[1746844419773,0.24434081,672.36,671.79,0.56072163]
[1746844419972,0.24434081,672.36,671.8,0.56072163]
[1746844420274,0.24434081,672.36,671.78,0.485]
[1746844420275,0.24434081,672.36,671.81,0.56072163]
[1746844420467,0.24434081,672.36,671.78,0.485]
[1746844420673,0.24434081,672.36,671.79,0.56069438]
[1746844420873,0.24434081,672.36,671.8,0.56069438]
[1746844421073,0.24434081,672.36,671.78,0.485]
[1746844421268,0.24434081,672.36,671.79,0.56067533]
[1746844421472,0.24434081,672.36,671.78,0.485]
[1746844424476,0.50325975,672.36,671.78,0.485]
[1746844425073,0.24434081,672.35,671.78,0.485]
[1746844426673,0.24434081,672.36,671.79,0.56077433]
[1746844426881,0.24434081,672.36,671.78,0.485]
[1746844427074,0.24434081,672.36,671.79,0.56077023]
[1746844427276,0.24434081,672.36,671.8,0.56075422]
[1746844427477,0.24434081,672.36,671.81,0.56075422]
[1746844427681,0.24434081,672.5,671.82,0.56075422]
[1746844427879,0.24434081,672.5,671.83,0.56075422]
[1746844428076,0.24434081,672.5,671.84,0.56075422]
[1746844428276,0.24434081,672.5,671.78,0.485]
[1746844428481,0.24434081,672.5,671.79,0.56057168]
[1746844428682,0.24434081,672.5,671.8,0.85832909]
[1746844428881,0.24434081,672.5,671.81,0.56057168]
[1746844429184,0.24434081,672.5,671.82,0.56057168]
[1746844429383,0.24434081,672.5,671.83,0.56057168]
[1746844429583,0.24434081,672.5,671.84,0.56057168]
[1746844429782,0.24434081,672.5,671.85,0.56057168]
[1746844429983,0.24434081,672.5,671.86,0.56057168]
[1746844430279,0.24434081,672.5,671.78,0.485]
[1746844430484,0.25877358,672.55,671.79,0.56034986]
[1746844430684,0.25877358,672.55,671.8,0.56034986]
[1746844430886,0.24434081,672.54,671.81,0.85808625]
[1746844431096,0.74034081,672.54,671.82,0.56034986]
[1746844431286,0.74034081,672.54,671.83,0.85808625]
[1746844431481,0.74034081,672.54,671.84,0.56034986]
[1746844431686,0.24434081,672.53,671.85,0.56034986]
[1746844431885,0.24434081,672.53,671.86,0.56034986]
[1746844432084,0.24434081,672.53,671.87,0.56034986]
[1746844432285,0.24434081,672.53,671.88,0.56034986]
[1746844432486,0.24434081,672.53,671.89,0.56015957]
[1746844432685,0.24434081,672.53,671.78,0.485]
[1746844432881,0.24434081,672.53,671.79,0.56014357]
[1746844433086,0.24434081,672.53,671.8,0.85787692]
[1746844433287,0.24434081,672.53,671.81,0.56014357]
[1746844433480,0.24434081,672.53,671.82,0.56014357]
[1746844433681,0.24434081,672.53,671.83,0.56014357]
[1746844433880,0.24434081,672.53,671.84,0.56014357]
[1746844434080,0.24434081,672.53,671.78,0.485]
[1746844434285,0.24434081,672.53,671.79,0.56001125]
[1746844434482,0.24434081,672.53,671.8,0.56001125]
[1746844434786,0.24434081,672.53,671.81,1.79152611]
[1746844435083,0.24434081,672.53,671.82,1.49385187]
[1746844435282,0.24434081,672.53,671.83,1.79152611]
[1746844435486,0.24434081,672.53,671.84,1.49385187]
[1746844435686,0.24434081,672.53,671.85,1.49385187]
[1746844435887,0.24434081,672.53,671.86,1.49385187]
[1746844436086,0.24434081,672.53,671.87,1.79152611]
[1746844436282,0.24434081,672.53,671.88,1.79152611]
[1746844436487,0.496,672.54,671.89,1.49385187]
[1746844436680,0.496,672.54,671.9,1.49385187]
[1746844436886,0.496,672.54,671.91,1.49385187]
[1746844437086,0.496,672.54,671.92,1.49385187]
[1746844437284,0.496,672.54,671.93,1.79152611]
[1746844437489,0.496,672.54,671.94,1.49385187]
[1746844437687,0.496,672.54,671.95,1.49228226]
[1746844437889,0.496,672.54,671.96,0.85768549]
[1746844438185,0.496,672.54,671.97,0.85768549]
[1746844438388,0.496,672.54,671.98,0.56001125]
[1746844438687,0.496,672.54,671.99,0.56001125]
[1746844438990,0.496,672.54,672.0,0.55875494]
[1746844439290,0.496,672.54,672.01,0.55875494]
[1746844439489,0.496,672.54,672.02,0.55848315]
[1746844439690,0.496,672.54,672.0,0.29767424]
[1746844439888,0.496,672.54,672.01,0.55848307]
[1746844440085,0.496,672.54,672.02,0.55848307]
[1746844440291,0.496,672.54,671.78,0.485]
[1746844440490,0.496,672.54,671.79,1.7874019]
[1746844440689,0.496,672.54,671.8,1.48979309]
[1746844440883,0.496,672.54,671.81,1.7874019]
[1746844441085,0.496,672.54,671.82,1.48979309]
[1746844441289,0.496,672.54,671.83,1.48979309]
[1746844441483,0.496,672.54,671.84,1.7874019]
[1746844441789,0.496,672.54,671.85,1.48979309]
[1746844441990,0.496,672.54,671.86,1.48979309]
[1746844442190,0.496,672.54,671.87,1.7874019]
[1746844442389,0.496,672.54,671.88,1.48979309]
[1746844442585,0.496,672.54,671.89,1.48979309]
[1746844442790,0.496,672.54,671.9,1.48979309]
[1746844442985,0.496,672.54,671.91,1.48979309]
[1746844443190,0.496,672.54,671.92,1.48979309]
[1746844443489,0.496,672.54,671.93,1.48979309]
[1746844443687,0.496,672.54,671.94,0.55848167]
[1746844443886,0.496,672.54,671.95,0.55848167]
[1746844444086,0.496,672.54,671.96,0.85609048]
[1746844444293,0.496,672.54,671.97,0.55848167]
[1746844444488,0.496,672.54,671.98,0.55848167]
[1746844444690,0.496,672.54,671.99,0.55848167]
[1746844444888,0.496,672.54,671.78,0.485]
[1746844445091,0.496,672.54,671.79,1.78546574]
[1746844445295,0.496,672.54,671.8,1.48785606]
[1746844445487,0.496,672.54,671.81,1.48785606]
[1746844445692,0.496,672.54,671.82,1.78546574]
[1746844445888,0.496,672.54,671.83,1.48785606]
[1746844446189,0.496,672.54,671.84,1.48785606]
[1746844446389,0.496,672.54,671.85,1.48785606]
[1746844446593,0.496,672.54,671.86,0.85536501]
[1746844446793,0.496,672.54,671.87,0.55775533]
[1746844447093,0.496,672.54,671.88,0.85536501]
[1746844447294,0.496,672.54,671.89,0.55775533]
[1746844447495,0.496,672.54,671.88,0.29760968]
[1746844447789,0.496,672.54,671.89,0.8550853]
[1746844447993,0.496,672.54,671.9,0.92965889]
[1746844448194,0.496,672.54,671.91,0.92965889]
[1746844448389,0.496,672.54,671.92,1.48707529]
[1746844448597,0.496,672.54,671.93,1.48707529]
[1746844448789,0.496,672.54,671.94,1.78468497]
[1746844448989,0.496,672.54,671.95,0.5574164]
[1746844449294,0.496,672.54,671.96,0.85502608]
[1746844449494,0.496,672.54,671.97,0.5574164]
[1746844449698,0.496,672.54,671.98,0.5574164]
[1746844449996,0.496,672.54,671.99,0.85502608]
[1746844450294,0.496,672.54,672.0,0.55738232]
[1746844450493,0.496,672.54,671.99,0.29760968]
[1746844450694,0.496,672.54,672.0,0.29760968]
[1746844451195,0.496,672.54,671.97,0.502]
[1746844451389,0.496,672.54,671.98,0.55739254]
[1746844451588,0.496,672.54,671.99,0.55739254]
[1746844451799,0.496,672.54,672.0,0.29764505]
[1746844452097,0.25878031,672.76,672.0,0.29764505]
[1746844452396,0.2448299,672.75,671.97,0.502]
[1746844452590,0.2448299,672.75,671.98,0.5574201]
[1746844452792,0.2448299,672.75,671.99,0.5574201]
[1746844452990,0.2448299,672.75,671.97,0.502]
[1746844453191,0.2448299,672.75,671.98,0.55742069]
[1746844453393,0.2448299,672.75,671.99,0.5574007]
[1746844453692,0.2448299,672.75,672.0,0.85504523]
[1746844453892,0.2448299,672.75,672.0,0.29764453]
[1746844454399,0.2448299,672.75,671.97,0.502]
[1746844454699,0.368,672.74,671.98,0.55745252]
[1746844454899,0.2448299,672.73,671.99,0.55745252]
[1746844455101,0.2448299,672.73,672.0,0.55745252]
[1746844455293,0.2448299,672.73,672.01,0.55750554]
[1746844455498,0.2448299,672.73,671.97,0.502]
[1746844455693,0.2448299,672.73,671.98,0.55750555]
[1746844455901,0.2448299,672.73,671.99,0.55750555]
[1746844456098,0.2448299,672.73,672.0,0.55750555]
[1746844456294,0.2448299,672.73,672.01,0.55757693]
[1746844456500,0.2448299,672.73,672.02,0.55757693]
[1746844456698,0.2448299,672.73,672.03,0.85520515]
[1746844456897,0.2448299,672.73,672.04,0.55757693]
[1746844457100,0.2448299,672.73,672.05,0.55757693]
[1746844457401,0.2448299,672.73,672.06,0.55757693]
[1746844457596,0.2448299,672.73,672.07,0.85520515]
[1746844457797,0.2448299,672.73,672.08,0.55757693]
[1746844458002,0.2448299,672.73,672.09,0.55757693]
[1746844458198,0.2448299,672.73,672.1,0.55757693]
[1746844458403,0.2448299,672.73,672.11,0.29762822]
[1746844458805,0.2448299,672.73,671.97,0.502]
[1746844459007,0.2448299,672.73,671.98,1.48697884]
[1746844459204,0.2448299,672.73,671.99,1.78457189]
[1746844459406,0.368,672.74,672.0,1.48697884]
[1746844459607,0.368,672.74,672.01,1.48697884]
[1746844459805,0.368,672.74,672.02,1.78457189]
[1746844460006,0.368,672.74,672.03,0.55741072]
[1746844460308,0.368,672.74,672.04,0.55741072]
[1746844460502,0.368,672.74,672.05,0.55741072]
[1746844460701,0.368,672.74,672.06,0.85500377]
[1746844460702,0.24488119,672.73,672.06,0.85500377]
[1746844460905,0.24488119,672.73,672.07,0.55741072]
[1746844461100,0.24488119,672.73,672.08,0.55741072]
[1746844461303,0.24488119,672.73,672.06,0.29759305]
[1746844461506,0.24488119,672.73,672.07,0.85496714]
[1746844461809,0.24488119,672.73,672.08,0.55737409]
[1746844462005,0.24488119,672.73,671.97,0.502]
[1746844462200,0.368,672.74,671.98,1.48691749]
[1746844462401,0.368,672.74,671.99,1.78451261]
[1746844462605,0.368,672.74,672.0,1.48691749]
[1746844462799,0.368,672.74,672.01,1.48691749]
[1746844463004,0.368,672.74,672.02,1.48691749]
[1746844463204,0.368,672.74,672.03,1.48671445]
[1746844463404,0.368,672.74,672.04,0.55738723]
[1746844463601,0.368,672.74,672.05,0.85498235]
[1746844463805,0.368,672.74,672.06,0.55738723]
[1746844464011,0.368,672.74,672.07,0.55738723]
[1746844464301,0.368,672.74,672.08,0.55738723]
[1746844464505,0.24487996,672.73,671.9,0.25862646]
[1746844464705,0.24487996,672.73,671.91,1.48631775]
[1746844464901,0.24487996,672.73,671.92,1.78390864]
[1746844465105,0.24487996,672.73,671.93,1.48631775]
[1746844465306,0.24487996,672.73,671.94,1.48631775]
[1746844465508,0.24487996,672.73,671.95,1.48631775]
[1746844465707,0.24487996,672.73,671.96,1.48626126]
[1746844465908,0.24487996,672.73,671.97,1.48626126]
[1746844466105,0.24487996,672.73,671.98,1.48626126]
[1746844466308,0.24487996,672.73,671.99,1.48626126]
[1746844466610,0.24487996,672.73,672.0,1.48626126]
[1746844466911,0.368,672.74,672.01,1.78385215]
[1746844467106,0.368,672.74,672.02,1.48626126]
[1746844467303,0.368,672.74,672.03,1.48626126]
[1746844467508,0.368,672.74,672.04,1.48626126]
[1746844467804,0.368,672.74,672.05,0.55710392]
[1746844468004,0.368,672.74,672.06,0.55710392]
[1746844468210,0.368,672.74,672.07,0.55710392]
[1746844468412,0.2448579,672.73,672.08,0.55710392]
[1746844468710,0.2448579,672.73,671.93,0.59275145]
[1746844468910,0.2448579,672.73,671.94,1.48613537]
[1746844469110,0.2448579,672.73,671.95,1.48613537]
[1746844469305,0.2448579,672.73,671.96,1.48612001]
[1746844469511,0.2448579,672.73,671.97,1.48612001]
[1746844469810,0.2448579,672.73,671.94,0.29758732]
[1746844469811,0.2448579,672.73,671.98,1.48612001]
[1746844470010,0.2448579,672.73,671.99,1.48612001]
[1746844470210,0.2448579,672.73,672.0,1.48612001]
[1746844470511,0.2448579,672.73,672.01,1.78370733]
[1746844470711,0.2448579,672.73,672.02,1.78370733]
[1746844471011,0.2448579,672.73,672.03,1.48639199]
[1746844471306,0.2448579,672.73,672.04,0.85479118]
[1746844471510,0.2448579,672.73,672.05,0.55720386]
[1746844471710,0.2448579,672.73,672.06,0.55720386]
[1746844471910,0.2448579,672.73,672.07,0.85479118]
[1746844472213,0.2448579,672.73,672.08,0.55720386]
[1746844472405,0.2448579,672.73,672.07,0.29758732]
[1746844472610,0.2448579,672.73,672.08,0.55736055]
[1746844472806,0.2448579,672.73,671.96,0.25874183]
[1746844473009,0.2448579,672.73,671.97,1.78434734]
[1746844473309,0.2448579,672.73,671.98,1.48675943]
[1746844473506,0.2448579,672.73,671.99,1.78434734]
[1746844473708,0.2448579,672.73,672.0,1.48675943]
[1746844473910,0.2448579,672.73,672.01,1.48675943]
[1746844474107,0.2448579,672.73,672.02,1.48675943]
[1746844474306,0.2448579,672.73,672.02,0.29758791]
[1746844474506,0.368,672.74,672.02,0.29758791]
[1746844474710,0.368,672.74,671.93,0.793]
[1746844474908,0.368,672.74,671.94,0.55764208]
[1746844475208,0.368,672.74,671.95,0.55764208]
[1746844475409,0.24473908,672.73,671.96,0.55764208]
[1746844475614,0.24473908,672.73,671.97,0.55764208]
[1746844475813,0.24473908,672.73,671.93,0.793]
[1746844476010,0.24473908,672.73,671.94,0.55781606]
[1746844476209,0.24473908,672.73,671.95,0.55781606]
[1746844476412,0.24473908,672.73,671.96,0.55792142]
[1746844476609,0.62678897,672.74,671.97,0.85556623]
[1746844476812,0.24473308,672.73,671.97,0.29764481]
[1746844477413,0.24473308,672.73,671.93,0.459]
[1746844480113,0.24473308,672.73,671.93,0.801]
[1746844484417,0.24473308,673.69,671.93,0.801]
[1746844484618,0.25872259,672.72,671.93,0.801]
[1746844484818,0.24473308,673.68,671.93,0.801]
[1746844485218,0.24473308,673.67,671.93,0.801]
[1746844485719,1.92529429,673.65,671.93,0.801]
[1746844485920,0.24473308,673.64,671.93,0.801]
[1746844486320,0.24473308,673.63,671.93,0.801]
[1746844486720,0.24473308,673.62,671.93,0.801]
[1746844487022,0.24473308,673.61,671.93,0.801]
[1746844487620,0.24473308,673.6,671.93,0.801]
[1746844487915,0.24473308,673.59,671.93,0.801]
[1746844488222,0.24473308,673.58,671.93,0.801]
[1746844488421,0.50345952,673.58,671.93,0.801]
[1746844488722,0.24473308,673.57,671.93,0.801]
[1746844489224,0.24473308,673.56,671.93,0.801]
[1746844489622,0.24473308,673.55,671.93,0.801]
[1746844489923,0.24473308,673.54,671.93,0.801]
[1746844490220,0.24473308,673.53,671.93,0.801]
[1746844490525,0.24473308,673.52,671.93,0.801]
[1746844490826,0.24473308,673.51,671.93,0.801]
[1746844491321,0.24473308,673.5,671.93,0.801]
[1746844491621,0.24473308,673.49,671.93,0.801]
[1746844492120,0.24473308,673.48,671.93,0.801]
[1746844492920,0.24473308,673.48,671.94,0.55917398]
[1746844493126,0.24473308,673.47,671.95,1.49205564]
[1746844493327,0.25866394,673.47,671.96,1.49205564]
[1746844493524,0.25866394,673.47,671.97,1.49205564]
[1746844493725,0.24473308,673.46,671.98,1.78963707]
[1746844494019,0.24473308,673.45,671.99,1.49114696]
[1746844494228,0.24473308,673.45,672.0,1.49114696]
[1746844494428,0.24473308,673.45,672.01,1.78872839]
[1746844494623,0.24473308,673.45,672.02,1.49114696]
[1746844494820,0.24473308,673.45,672.03,1.78872839]
[1746844495019,0.24473308,673.44,672.04,1.49114696]
[1746844495223,0.24473308,673.46,672.05,1.49114696]
[1746844495427,0.24473308,673.46,672.06,1.49114696]
[1746844495623,0.24473308,673.46,672.07,1.78872839]
[1746844495822,0.24473308,673.46,672.08,1.49885768]
[1746844496023,0.24473308,673.46,672.09,1.49885768]
[1746844496222,0.24473308,673.46,672.1,1.49885768]
[1746844496525,0.24473308,673.46,672.11,1.49885768]
[1746844496725,0.24473308,673.65,672.12,1.79643911]
[1746844496922,0.24473308,673.65,672.13,1.49885768]
[1746844497130,0.24473308,673.64,672.14,1.22956098]
[1746844497322,0.50335954,673.64,672.15,0.56655502]
[1746844497626,0.24473308,673.63,672.16,0.56655502]
[1746844497830,0.24473308,673.63,672.17,0.56655502]
[1746844498127,0.24473308,673.63,672.18,1.80908829]
[1746844498328,0.24473308,673.62,672.19,1.51144639]
[1746844498522,1.92529429,673.51,672.2,1.8089368]
[1746844498726,1.92529429,673.51,672.21,0.56655502]
[1746844498727,0.24473308,673.5,672.21,0.56655502]
[1746844498926,0.24473308,673.5,672.22,0.86413645]
[1746844499121,0.24473308,673.5,672.22,0.29758143]
[1746844499330,0.25859475,673.49,672.23,1.80817718]
[1746844499531,0.24473308,673.48,672.24,1.51059575]
[1746844499724,0.24473308,673.48,672.25,1.51059575]
[1746844499924,0.24473308,673.47,672.26,1.80817718]
[1746844500124,0.24473308,673.47,672.27,1.51059575]
[1746844500324,0.24473308,673.48,672.28,1.80817718]
[1746844500523,0.24473308,673.48,672.29,1.51059575]
[1746844500723,0.24473308,673.48,672.3,1.51059575]
[1746844500925,0.24473308,673.48,672.31,1.80817718]
[1746844501129,0.24473308,673.48,672.32,1.51059575]
[1746844501331,0.25859475,673.49,672.33,1.51059575]
[1746844501631,0.24468944,673.48,672.34,1.80817718]
[1746844501924,0.24468944,673.48,672.35,1.51059575]
[1746844502129,0.24468944,673.48,672.36,0.86366713]
[1746844502326,0.24468944,673.48,672.37,0.5660857]
[1746844502526,0.25852655,673.47,672.36,0.29758143]
[1746844502726,0.24468944,673.46,672.36,0.29758143]
[1746844502926,0.24468944,673.46,672.14,0.25852655]
[1746844503129,0.24468944,673.46,672.15,1.5083811]
[1746844503330,0.24468944,673.46,672.16,1.5083811]
[1746844503529,0.24468944,673.46,672.17,1.80582423]
[1746844503728,0.24468944,673.46,672.18,1.50888701]
[1746844503933,0.24468944,673.46,672.19,1.80633014]
[1746844504126,0.24468944,673.46,672.2,1.50888701]
[1746844504426,0.24468944,673.46,672.21,1.80633014]
[1746844504628,0.447,673.45,672.22,1.50888701]
[1746844504829,0.447,673.45,672.23,1.50888701]
[1746844505030,0.447,673.45,672.24,1.80633014]
[1746844505232,0.24474298,673.44,672.25,1.50888701]
[1746844505431,0.50334349,673.44,672.26,1.50888701]
[1746844505631,0.50334349,673.44,672.27,1.50827458]
[1746844505831,0.24474298,673.43,672.28,0.56618707]
[1746844506030,0.24474298,673.43,672.29,0.8636302]
[1746844506228,0.24474298,673.43,672.3,0.8636302]
[1746844506428,0.24474298,673.43,672.31,0.56618707]
[1746844506731,0.24474298,673.43,672.18,0.25860051]
[1746844506931,0.24474298,673.43,672.19,1.50755808]
[1746844507132,0.24474298,673.43,672.2,1.50755808]
[1746844507326,0.24474298,673.43,672.21,1.80500359]
[1746844507532,0.24474298,673.43,672.22,1.80500359]
[1746844507729,0.24474298,673.43,672.23,1.50755808]
[1746844507927,0.24474298,673.43,672.24,1.50755808]
[1746844508126,0.24474298,673.43,672.25,1.80500359]
[1746844508427,0.24474298,673.44,672.26,1.80500359]
[1746844508635,0.25860724,673.42,672.27,1.50755808]
[1746844508828,0.25860724,673.42,672.28,1.50755808]
[1746844509026,0.25860724,673.42,672.29,1.50755808]
[1746844509230,0.24474298,673.41,672.3,1.50755808]
[1746844509426,0.24474298,673.41,672.31,1.50755808]
[1746844509632,0.24474298,673.41,672.32,1.80500359]
[1746844509831,0.24474298,673.41,672.33,1.80500359]
[1746844510030,0.24474298,673.41,672.34,1.50755808]
[1746844510228,0.24474298,673.41,672.35,1.50755808]
[1746844510427,0.24474298,673.41,672.36,1.50755808]
[1746844510629,0.24474298,673.41,672.37,1.50755808]
[1746844510827,0.24474298,673.41,672.38,1.50755808]
[1746844511028,0.24474298,673.41,672.39,1.50755808]
[1746844511232,0.24474298,673.41,672.4,0.56569983]
[1746844511431,0.25858033,673.4,672.41,1.10669983]
[1746844511627,0.25858033,673.4,672.42,1.80285405]
[1746844511833,0.25858033,673.4,672.43,1.50538073]
[1746844512033,0.25858033,673.4,672.41,0.541]
[1746844512034,0.24474298,673.39,672.44,1.80282624]